bitfinex-derivatives/quotes_BTCF0:USTF0_20210706
["timestamp","ask_amount","ask_price","bid_price","bid_amount"]
[1625560635897,5.64954859,34821.0,34820.0,0.24057544]
[1625560635998,5.64954859,34821.0,34820.0,0.29957544]
[1625560636298,4.12487018,34821.0,34820.0,0.29957544]
[1625560636600,4.12487018,34821.0,34820.0,0.38392598]
[1625560637856,4.12487018,34821.0,34820.0,0.55258318]
[1625560638305,4.12487018,34821.0,34820.0,0.38392598]
[1625560639108,0.56657985,34821.0,34820.0,0.29957544]
[1625560639559,4.12377522,34821.0,34820.0,0.38391066]
[1625560640515,4.12377522,34821.0,34820.0,0.55253535]
[1625560642122,4.12377522,34821.0,34820.0,0.88956722]
[1625560642573,4.12377522,34821.0,34820.0,0.55253535]
[1625560643823,4.12377522,34821.0,34820.0,0.8893055]
[1625560645427,4.12377522,34821.0,34820.0,0.80497028]
[1625560646531,4.12377522,34821.0,34820.0,0.74597028]
[1625560647031,4.12377522,34821.0,34820.0,0.49343108]
[1625560647534,4.12377522,34821.0,34820.0,0.32480639]
[1625560647935,4.12377522,34821.0,34820.0,0.24057544]
[1625560648986,4.12377522,34821.0,34820.0,0.29957544]
[1625560649589,4.12377522,34821.0,34820.0,0.38381277]
[1625560649940,4.12377522,34821.0,34820.0,0.80492617]
[1625560650542,4.12377522,34821.0,34820.0,0.63647593]
[1625560651095,4.12377522,34821.0,34820.0,0.29957544]
[1625560651394,4.12377522,34821.0,34820.0,0.80501727]
[1625560652094,4.12377522,34821.0,34820.0,0.63653666]
[1625560652396,4.12377522,34821.0,34820.0,0.57753666]
[1625560652850,4.12377522,34821.0,34820.0,0.88935638]
[1625560653297,4.12377522,34821.0,34820.0,0.80508314]
[1625560653499,4.12377522,34821.0,34820.0,0.74608314]
[1625560653648,4.12377522,34821.0,34820.0,0.83040212]
[1625560653849,4.12377522,34821.0,34820.0,0.88940212]
[1625560653999,4.12377522,34821.0,34820.0,0.63653666]
[1625560654602,4.12377522,34821.0,34820.0,0.80515815]
[1625560656056,4.12377522,34821.0,34820.0,0.63653666]
[1625560656507,4.12377522,34821.0,34820.0,0.29957544]
[1625560658911,4.12377522,34821.0,34820.0,0.63700918]
[1625560660468,4.12377522,34821.0,34820.0,0.29957544]
[1625560663827,4.12377522,34821.0,34820.0,1.31292752]
[1625560666937,4.06477522,34821.0,34820.0,1.31292752]
[1625560667689,5.5924946,34821.0,34820.0,1.31292752]
[1625560668991,5.6514946,34821.0,34820.0,1.31292752]
[1625560669443,5.6514946,34821.0,34820.0,0.29957544]
[1625560669746,5.6514946,34821.0,34820.0,1.31454093]
[1625560671549,5.5924946,34821.0,34820.0,1.31454093]
[1625560671901,5.5924946,34821.0,34820.0,1.54568093]
[1625560672200,5.5924946,34821.0,34820.0,6.56688093]
[1625560672300,6.27220316,34821.0,34820.0,8.4271973]
[1625560672400,6.27220316,34821.0,34820.0,8.4861973]
[1625560672551,4.74448378,34821.0,34820.0,9.83851483]
[1625560673653,4.71047794,34821.0,34820.0,9.83851483]
[1625560675206,4.71047794,34821.0,34820.0,4.81731483]
[1625560676813,4.4699025,34821.0,34820.0,4.57673939]
[1625560677265,4.71047794,34821.0,34820.0,4.81731483]
[1625560678015,4.71047794,34821.0,34820.0,4.75831483]
[1625560678516,4.71047794,34821.0,34820.0,3.4059973]
[1625560678616,4.71047794,34821.0,34820.0,3.1748573]
[1625560678819,0.47357401,34821.0,34820.0,0.29957544]
[1625560679120,4.71824134,34821.0,34820.0,3.17185246]
[1625560680482,4.71824134,34821.0,34820.0,3.23085246]
[1625560680673,4.71824134,34821.0,34820.0,3.17185246]
[1625560680974,4.71824134,34821.0,34820.0,4.52317579]
[1625560681625,4.71824134,34821.0,34820.0,4.58217579]
[1625560682175,4.71824134,34821.0,34820.0,4.52317579]
[1625560682425,4.71824134,34821.0,34820.0,4.58217579]
[1625560682575,4.71824134,34821.0,34820.0,3.17185246]
[1625560682876,4.71824134,34821.0,34820.0,4.52331205]
[1625560682977,4.71824134,34821.0,34820.0,4.58231205]
[1625560684179,3.35999533,34821.0,34820.0,4.58231205]
[1625560686585,4.71791795,34821.0,34820.0,4.58231205]
[1625560686836,4.71791795,34821.0,34820.0,4.52331205]
[1625560687033,4.80301795,34821.0,34820.0,4.52331205]
[1625560687134,4.80301795,34821.0,34820.0,4.58231205]
[1625560687284,3.44509533,34821.0,34820.0,4.58231205]
[1625560687384,3.35999533,34821.0,34820.0,4.58231205]
[1625560688387,3.44639533,34821.0,34820.0,4.58231205]
[1625560690845,3.35999533,34821.0,34820.0,4.58231205]
[1625560695707,2.17150885,34821.0,34820.0,4.58231205]
[1625560696358,3.35911351,34821.0,34820.0,4.58231205]
[1625560700967,2.17150885,34821.0,34820.0,4.58231205]
[1625560701419,2.17150885,34821.0,34820.0,4.58571171]
[1625560701873,2.17150885,34821.0,34820.0,4.58231205]
[1625560702075,3.86801359,34821.0,34820.0,5.08860084]
[1625560702176,3.86801359,34821.0,34820.0,5.09200049]
[1625560703477,2.68052812,34821.0,34820.0,5.09200049]
[1625560709390,2.46297812,34821.0,34820.0,5.34083049]
[1625560709993,1.44425117,34821.0,34820.0,6.85777]
[1625560710695,1.20367573,34821.0,34820.0,6.85777]
[1625560711246,0.52457062,34821.0,34820.0,6.85777]
[1625560711495,0.52457062,34821.0,34820.0,7.09834544]
[1625560711795,0.60952241,34821.0,34820.0,7.09834544]
[1625560712898,0.52457062,34821.0,34820.0,7.09834544]
[1625560713349,0.27016803,34821.0,34820.0,7.09834544]
[1625560713750,0.79254552,34821.0,34820.0,7.09834544]
[1625560713849,0.79254552,34821.0,34820.0,6.84951544]
[1625560714253,1.47073634,34821.0,34820.0,6.84951544]
[1625560714806,2.48828329,34821.0,34820.0,5.33257593]
[1625560716207,2.48828329,34821.0,34820.0,5.32917628]
[1625560719009,2.48828329,34821.0,34820.0,5.33257569]
[1625560719260,2.48828329,34821.0,34820.0,5.32917628]
[1625560720061,2.48828329,34821.0,34820.0,5.33257565]
[1625560720763,1.47073634,34821.0,34820.0,6.84803406]
[1625560722315,0.79234469,34821.0,34820.0,6.84803406]
[1625560722815,1.47088305,34821.0,34820.0,6.84803406]
[1625560723216,2.48867646,34821.0,34820.0,5.33257565]
[1625560723665,2.48867646,34821.0,34820.0,5.32917628]
[1625560725367,3.67625968,34821.0,34820.0,5.32917628]
[1625560730680,3.67625968,34821.0,34820.0,5.33257559]
[1625560731778,3.67625968,34821.0,34820.0,6.85029929]
[1625560732180,3.67625968,34821.0,34820.0,5.33257559]
[1625560732541,0.28350857,34821.0,34820.0,0.60255019]
[1625560732633,0.01544857,34821.0,34820.0,0.60255019]
[1625560732841,0.01544857,34821.0,34820.0,6.84039725]
[1625560732842,2.22258371,34821.0,34820.0,6.84039725]
[1625560732935,2.20713514,34821.0,34820.0,6.84039725]
[1625560733184,2.22259651,34821.0,34820.0,6.84039725]
[1625560733386,2.45135651,34821.0,34820.0,6.84039725]
[1625560733489,3.6397691,34821.0,34820.0,5.3230831]
[1625560736142,3.6397691,34821.0,34820.0,5.31968379]
[1625560736395,3.6397691,34821.0,34820.0,5.32308321]
[1625560740308,2.22259651,34821.0,34820.0,6.84013636]
[1625560745517,3.41130729,34821.0,34820.0,6.84013636]
[1625560745619,3.62577729,34821.0,34820.0,6.84013636]
[1625560746871,3.62577729,34821.0,34820.0,6.78113636]
[1625560747272,4.98438153,34821.0,34820.0,5.26408321]
[1625560747672,5.22495697,34821.0,34820.0,5.26408321]
[1625560747773,5.22495697,34821.0,34820.0,5.32308321]
[1625560747972,5.22495697,34821.0,34820.0,5.22308379]
[1625560748172,5.22495697,34821.0,34820.0,5.16668379]
[1625560748272,5.22495697,34821.0,34820.0,4.92610835]
[1625560748373,5.25895273,34821.0,34820.0,4.92610835]
[1625560748925,5.22495697,34821.0,34820.0,4.92610835]
[1625560749025,5.22495697,34821.0,34820.0,4.98510835]
[1625560749227,5.22495697,34821.0,34820.0,4.92610835]
[1625560749331,5.30975697,34821.0,34820.0,4.92610835]
[1625560749584,5.22495697,34821.0,34820.0,4.92610835]
[1625560749833,5.25895328,34821.0,34820.0,4.92610835]
[1625560750032,5.22495697,34821.0,34820.0,4.92610835]
[1625560750334,5.2589533,34821.0,34820.0,4.92610835]
[1625560750434,5.2589533,34821.0,34820.0,3.63638466]
[1625560750733,5.2589533,34821.0,34820.0,3.57738466]
[1625560752535,6.78710294,34821.0,34820.0,3.57738466]
[1625560752937,5.3446533,34821.0,34820.0,3.57738466]
[1625560753339,6.78681847,34821.0,34820.0,2.39725143]
[1625560754644,6.78681847,34821.0,34820.0,2.45625143]
[1625560754844,6.75282214,34821.0,34820.0,2.45625143]
[1625560755146,5.22495697,34821.0,34820.0,2.45625143]
[1625560755345,5.25895155,34821.0,34820.0,2.45625143]
[1625560756149,5.22495697,34821.0,34820.0,2.45625143]
[1625560756449,5.25895126,34821.0,34820.0,2.45625143]
[1625560756703,5.22495697,34821.0,34820.0,2.45625143]
[1625560757453,5.30985697,34821.0,34820.0,2.45625143]
[1625560758906,5.30985697,34821.0,34820.0,2.39725143]
[1625560759006,5.34385169,34821.0,34820.0,2.39725143]
[1625560759808,6.87064713,34821.0,34820.0,2.39725143]
[1625560760708,5.34385169,34821.0,34820.0,2.39725143]
[1625560760858,5.30985697,34821.0,34820.0,2.39725143]
[1625560760963,6.83647969,34821.0,34820.0,2.39725143]
[1625560761159,6.8704744,34821.0,34820.0,2.39725143]
[1625560761611,6.7855744,34821.0,34820.0,2.25067599]
[1625560761712,6.7855744,34821.0,34820.0,2.12407599]
[1625560761814,6.9035744,34821.0,34818.0,0.92285478]
[1625560761914,0.48115088,34819.0,34818.0,0.92285478]
[1625560762014,0.54015088,34819.0,34818.0,0.92285478]
[1625560762216,0.64848943,34819.0,34818.0,0.92285478]
[1625560762414,5.22896986,34819.0,34815.0,0.25389602]
[1625560762821,0.0493396,34818.0,34815.0,0.25389602]
[1625560762919,0.1673396,34818.0,34815.0,0.25389602]
[1625560763116,2.88211561,34816.0,34814.0,0.08458471]
[1625560763217,2.94111561,34816.0,34814.0,0.08458471]
[1625560763518,4.8327,34816.0,34815.0,0.25366291]
[1625560763816,4.84803914,34816.0,34815.0,0.25366291]
[1625560763917,7.72999824,34816.0,34815.0,0.25366291]
[1625560764017,7.97057368,34816.0,34815.0,0.25366291]
[1625560764518,7.97057368,34816.0,34815.0,0.23256291]
[1625560764619,7.97057368,34816.0,34813.0,0.50728041]
[1625560764720,8.05787368,34816.0,34813.0,0.50728041]
[1625560764869,0.01533924,34815.0,34813.0,0.50728041]
[1625560764972,0.07433924,34815.0,34813.0,0.50728041]
[1625560765070,1.35558806,34814.0,34813.0,0.50728041]
[1625560765170,1.76475806,34814.0,34813.0,0.50728041]
[1625560765421,1.78009736,34814.0,34813.0,0.50728041]
[1625560765721,3.30504259,34814.0,34813.0,0.16909347]
[1625560766071,3.54561803,34814.0,34813.0,0.16909347]
[1625560766183,3.54561803,34814.0,34812.0,0.50933668]
[1625560766275,3.54561803,34814.0,34812.0,0.50733668]
[1625560766475,0.01534448,34813.0,34812.0,0.50733668]
[1625560766574,0.07434448,34813.0,34812.0,0.50733668]
[1625560767376,0.07434448,34813.0,34807.0,0.002]
[1625560767778,0.01534547,34812.0,34807.0,0.002]
[1625560767877,0.07434547,34812.0,34807.0,0.002]
[1625560768078,0.72172632,34808.0,34807.0,0.002]
[1625560768184,0.78072632,34808.0,34807.0,0.002]
[1625560768328,0.79607242,34808.0,34807.0,0.002]
[1625560768529,0.79607242,34808.0,34803.0,1.24182127]
[1625560768699,0.79607242,34808.0,34802.0,0.24357544]
[1625560768700,0.79607242,34808.0,34807.0,0.50775366]
[1625560768701,0.85507242,34808.0,34807.0,0.50775366]
[1625560768878,0.83972632,34808.0,34807.0,0.50775366]
[1625560768982,2.36287517,34808.0,34803.0,0.50804096]
[1625560769130,4.6679,34804.0,34803.0,0.50804096]
[1625560769230,4.99882,34804.0,34803.0,0.50804096]
[1625560769332,4.99882,34804.0,34803.0,0.42224096]
[1625560769433,5.0141666,34804.0,34803.0,0.41714096]
[1625560769531,5.0141666,34804.0,34803.0,0.32939397]
[1625560769736,5.0731666,34804.0,34803.0,0.32939397]
[1625560769987,5.0731666,34804.0,34802.0,0.003]
[1625560770088,0.24057544,34803.0,34802.0,0.003]
[1625560770238,0.29957544,34803.0,34802.0,0.003]
[1625560770338,0.29957544,34803.0,34797.0,0.004]
[1625560770440,0.31492254,34803.0,34797.0,0.004]
[1625560770691,0.29957544,34803.0,34797.0,0.004]
[1625560770791,0.29957544,34803.0,34797.0,0.063]
[1625560771040,0.24057544,34803.0,34797.0,0.063]
[1625560771791,0.29957544,34803.0,34797.0,0.063]
[1625560772043,0.29957544,34803.0,34797.0,0.004]
[1625560772142,0.48115088,34798.0,34797.0,0.004]
[1625560773243,0.48115088,34798.0,34797.0,0.063]
[1625560775297,0.48115088,34798.0,34797.0,0.059]
[1625560776098,0.48115088,34798.0,34792.0,0.24057544]
[1625560776299,0.48115088,34798.0,34795.0,0.29957544]
[1625560781558,0.48115088,34798.0,34795.0,0.059]
[1625560782213,0.24057544,34796.0,34795.0,0.059]
[1625560782312,0.54195544,34796.0,34795.0,0.059]
[1625560782713,5.39315544,34796.0,34795.0,0.059]
[1625560787624,5.47845544,34796.0,34795.0,0.059]
[1625560787825,5.39315544,34796.0,34795.0,0.059]
[1625560790887,5.40850359,34796.0,34795.0,0.059]
[1625560792343,0.55730359,34796.0,34795.0,0.059]
[1625560792543,0.24057544,34796.0,34795.0,0.059]
[1625560792871,0.25592288,34796.0,34795.0,0.118]
[1625560793044,0.24057544,34796.0,34795.0,0.118]
[1625560793247,0.24057544,34796.0,34795.0,1.12855684]
[1625560793746,0.24057544,34796.0,34795.0,2.30760806]
[1625560793858,0.24057544,34796.0,34795.0,2.31100874]
[1625560794446,0.24057544,34796.0,34795.0,2.30760806]
[1625560794549,0.24057544,34796.0,34795.0,1.12855684]
[1625560794646,0.25592161,34796.0,34795.0,1.13195746]
[1625560794948,4.08832161,34796.0,34795.0,1.13195746]
[1625560795199,4.08832161,34796.0,34795.0,0.12140062]
[1625560795702,4.08832161,34796.0,34795.0,0.118]
[1625560795801,4.43155161,34796.0,34795.0,0.118]
[1625560796253,4.43155161,34796.0,34795.0,0.12140073]
[1625560798159,4.08832161,34796.0,34795.0,0.12140073]
[1625560798712,4.08832161,34796.0,34795.0,1.13246648]
[1625560799764,4.08832161,34796.0,34795.0,2.31220092]
[1625560803431,4.08832161,34796.0,34795.0,3.66103762]
[1625560803775,4.07297544,34796.0,34795.0,3.66103762]
[1625560804277,4.08832125,34796.0,34795.0,3.66103762]
[1625560804630,4.07297544,34796.0,34795.0,3.66103762]
[1625560808434,4.07297544,34796.0,34795.0,3.60203762]
[1625560809385,4.08831975,34796.0,34795.0,3.66103762]
[1625560816151,4.17541975,34796.0,34795.0,3.66103762]
[1625560816351,4.16007544,34796.0,34795.0,3.66103762]
[1625560816653,4.17541976,34796.0,34795.0,3.66103762]
[1625560816752,4.08831976,34796.0,34795.0,3.66103762]
[1625560818906,4.08831976,34796.0,34795.0,5.18519134]
[1625560820058,4.07297544,34796.0,34795.0,5.18519134]
[1625560820908,4.0883195,34796.0,34795.0,5.18519134]
[1625560821914,4.0883195,34796.0,34795.0,5.86324656]
[1625560823671,4.1752195,34796.0,34795.0,5.86324656]
[1625560823820,4.0883195,34796.0,34795.0,5.86324656]
[1625560829886,4.76695191,34796.0,34795.0,5.86324656]
[1625560830987,5.78459206,34796.0,34795.0,5.86324656]
[1625560831489,4.76695191,34796.0,34795.0,5.86324656]
[1625560832794,4.75160785,34796.0,34795.0,5.85984583]
[1625560833045,4.76695188,34796.0,34795.0,5.86324678]
[1625560833346,5.00071188,34796.0,34795.0,5.86324678]
[1625560833897,6.01870904,34796.0,34795.0,5.86324678]
[1625560837707,6.10530904,34796.0,34795.0,5.86324678]
[1625560837809,6.01870904,34796.0,34795.0,5.86324678]
[1625560840613,5.00071188,34796.0,34795.0,5.86324678]
[1625560840713,4.76695188,34796.0,34795.0,5.86324678]
[1625560843269,5.78519872,34796.0,34795.0,5.86324678]
[1625560847425,1.95279872,34796.0,34795.0,5.86324678]
[1625560847625,1.95279872,34796.0,34795.0,6.12456678]
[1625560847726,0.93455188,34796.0,34795.0,6.12456678]
[1625560847925,0.91920785,34796.0,34795.0,6.12456678]
[1625560848024,0.91920785,34796.0,34795.0,9.86186678]
[1625560848125,0.24057544,34796.0,34795.0,11.5587602]
[1625560848576,0.24057544,34798.0,34795.0,11.5587602]
[1625560848577,0.001,34799.0,34795.0,11.5587602]
[1625560848779,0.001,34799.0,34798.0,5.76530667]
[1625560848977,0.001,34799.0,34798.0,6.12388211]
[1625560849227,0.01635842,34799.0,34798.0,6.12728274]
[1625560851734,0.001,34799.0,34798.0,6.12728274]
[1625560851985,0.001,34799.0,34798.0,6.63548046]
[1625560852387,0.001,34799.0,34798.0,8.32925224]
[1625560853790,0.001,34799.0,34798.0,8.34205224]
[1625560856249,0.001,34802.0,34798.0,8.34205224]
[1625560856451,0.5102063,34802.0,34798.0,8.34205224]
[1625560856751,0.5102063,34802.0,34799.0,0.00340056]
[1625560856852,0.5102063,34802.0,34799.0,0.06240056]
[1625560856952,0.5102063,34802.0,34799.0,0.12140056]
[1625560857052,0.001,34802.0,34801.0,6.73553332]
[1625560857252,0.001,34802.0,34801.0,6.85353332]
[1625560857352,0.001,34802.0,34801.0,6.85693398]
[1625560858908,4.6679,34804.0,34802.0,0.058]
[1625560859011,4.6679,34804.0,34802.0,0.32895]
[1625560859108,4.6679,34804.0,34803.0,0.24057544]
[1625560859307,4.6679,34804.0,34803.0,0.3619758]
[1625560859658,4.6679,34804.0,34803.0,6.60264683]
[1625560861067,4.6679,34804.0,34803.0,8.28804219]
[1625560861616,4.6679,34804.0,34803.0,6.60264683]
[1625560864222,4.6679,34804.0,34803.0,6.59924647]
[1625560864322,5.01252,34804.0,34803.0,6.59924647]
[1625560864770,5.01252,34804.0,34803.0,6.65774647]
[1625560865222,5.25309544,34804.0,34803.0,6.65774647]
[1625560866023,5.25309544,34804.0,34803.0,6.74174647]
[1625560867274,4.90847544,34804.0,34803.0,6.74514731]
[1625560870435,4.90847544,34804.0,34803.0,6.74174647]
[1625560871038,4.90847544,34804.0,34803.0,5.22374541]
[1625560871136,4.6679,34804.0,34803.0,5.22374541]
[1625560871537,4.6679,34804.0,34803.0,6.74505711]
[1625560874241,4.6679,34804.0,34803.0,5.22714619]
[1625560875244,4.90847544,34804.0,34803.0,5.22714619]
[1625560875343,4.92383152,34804.0,34803.0,5.22374541]
[1625560875694,5.43214629,34804.0,34803.0,5.22374541]
[1625560875796,5.43214629,34804.0,34803.0,5.16474541]
[1625560875994,5.43214629,34804.0,34803.0,5.22374541]
[1625560876193,6.10986831,34804.0,34803.0,3.87441113]
[1625560876845,6.10986831,34804.0,34803.0,5.22510086]
[1625560877547,6.10986831,34804.0,34803.0,3.87441113]
[1625560877948,6.10986831,34804.0,34803.0,5.22506327]
[1625560878405,6.10986831,34804.0,34803.0,3.87441113]
[1625560878753,7.12643595,34804.0,34803.0,3.87441113]
[1625560879052,6.10986831,34804.0,34803.0,5.22521185]
[1625560879907,7.1264468,34804.0,34803.0,3.87441113]
[1625560883063,7.1264468,34804.0,34803.0,3.87781213]
[1625560883464,6.10986831,34804.0,34803.0,5.22838605]
[1625560884065,4.92383152,34804.0,34803.0,5.22838605]
[1625560884468,6.11000795,34804.0,34803.0,5.22838605]
[1625560885219,5.43221705,34804.0,34803.0,5.22838605]
[1625560886571,4.92383152,34804.0,34803.0,5.22838605]
[1625560887424,5.67370381,34804.0,34803.0,5.22838605]
[1625560889881,6.01271794,34804.0,34803.0,5.22838605]
[1625560890531,5.50430565,34804.0,34803.0,5.22838605]
[1625560893187,6.0128527,34804.0,34803.0,5.22838605]
[1625560894445,5.67383857,34804.0,34803.0,5.22838605]
[1625560894544,6.35188528,34804.0,34803.0,5.22838605]
[1625560895093,1.68398528,34804.0,34803.0,5.22838605]
[1625560895193,5.89698528,34804.0,34803.0,5.22838605]
[1625560901812,5.21893857,34804.0,34803.0,5.22838605]
[1625560903415,5.21893857,34804.0,34803.0,6.75518307]
[1625560903765,5.04434541,34804.0,34803.0,6.75518307]
[1625560904969,5.21125477,34804.0,34803.0,6.75518307]
[1625560905569,5.04258504,34804.0,34803.0,6.75518307]
[1625560906075,5.54097375,34804.0,34803.0,6.75518307]
[1625560906527,5.04258504,34804.0,34803.0,6.75518307]
[1625560906878,5.54148284,34804.0,34803.0,6.75518307]
[1625560907426,4.71039152,34804.0,34803.0,6.75518307]
[1625560908579,5.54258524,34804.0,34803.0,6.75518307]
[1625560909129,5.04330228,34804.0,34803.0,6.75518307]
[1625560909689,5.54323147,34804.0,34803.0,6.75518307]
[1625560910130,5.04330228,34804.0,34803.0,6.75518307]
[1625560910537,5.20963808,34804.0,34803.0,6.75518307]
[1625560912187,5.5424065,34804.0,34803.0,6.75518307]
[1625560912588,5.04315994,34804.0,34803.0,6.75518307]
[1625560914591,5.04315994,34804.0,34803.0,10.74188307]
[1625560914791,4.71039152,34804.0,34803.0,10.74188307]
[1625560915549,4.71039152,34804.0,34803.0,6.75518307]
[1625560916848,4.71039152,34804.0,34803.0,6.69618307]
[1625560916947,4.71039152,34804.0,34803.0,6.39660763]
[1625560917250,4.76939152,34804.0,34803.0,6.39660763]
[1625560917350,8.09690083,34804.0,34803.0,4.86981061]
[1625560917446,8.12300083,34804.0,34803.0,4.86981061]
[1625560917548,8.42257627,34804.0,34803.0,4.86981061]
[1625560917647,8.36357627,34804.0,34803.0,4.86981061]
[1625560917747,8.33747627,34804.0,34803.0,2.86560961]
[1625560917848,9.66773252,34804.0,34803.0,1.51503569]
[1625560917953,9.66773252,34804.0,34803.0,1.44403569]
[1625560918250,9.66773252,34804.0,34802.0,1.12129829]
[1625560918352,9.66773252,34804.0,34799.0,1.35851262]
[1625560918550,0.01536777,34803.0,34799.0,1.35851262]
[1625560918652,0.07436777,34803.0,34799.0,1.35851262]
[1625560918851,0.01536777,34803.0,34800.0,0.00340149]
[1625560919150,0.015368,34802.0,34800.0,0.00340149]
[1625560919352,0.015368,34802.0,34799.0,1.35851262]
[1625560919553,0.24057544,34800.0,34797.0,0.24057544]
[1625560919652,0.24057544,34800.0,34799.0,0.059]
[1625560920054,0.24057544,34800.0,34798.0,0.00340145]
[1625560920156,0.25594332,34800.0,34799.0,0.00340153]
[1625560920455,0.25594332,34800.0,34798.0,0.00340153]
[1625560920555,0.34224332,34800.0,34798.0,0.06240153]
[1625560920655,0.34224332,34800.0,34799.0,0.00340153]
[1625560920906,0.34224332,34800.0,34797.0,0.24057544]
[1625560921007,0.34224332,34800.0,34797.0,0.29957544]
[1625560921207,0.015368,34799.0,34798.0,0.00340157]
[1625560921408,0.015368,34799.0,34798.0,0.06240157]
[1625560922461,0.101168,34799.0,34798.0,0.06240157]
[1625560922765,0.101168,34799.0,34798.0,0.059]
[1625560922865,0.015368,34799.0,34798.0,0.059]
[1625560923114,0.015368,34799.0,34798.0,0.06240162]
[1625560923865,0.015368,34799.0,34798.0,0.059]
[1625560925219,0.015368,34799.0,34798.0,0.06240161]
[1625560926772,0.015368,34799.0,34798.0,0.059]
[1625560934897,0.01536539,34799.0,34798.0,0.059]
[1625560937898,0.01536539,34799.0,34798.0,1.24561659]
[1625560938799,0.01536539,34799.0,34798.0,0.059]
[1625560940304,0.01536539,34799.0,34798.0,1.245479]
[1625560941609,0.01536539,34799.0,34798.0,1.516979]
[1625560941864,0.01536539,34799.0,34798.0,2.87276965]
[1625560942914,0.01536539,34799.0,34798.0,2.93176965]
[1625560943014,0.33372496,34799.0,34798.0,2.93517104]
[1625560943271,0.74147594,34800.0,34798.0,2.93517104]
[1625560943717,0.40759789,34800.0,34799.0,2.78239575]
[1625560943816,0.40759789,34800.0,34799.0,2.84479699]
[1625560943917,0.40759789,34800.0,34799.0,2.90379699]
[1625560944669,0.32416347,34800.0,34799.0,2.90379699]
[1625560945370,0.33952302,34800.0,34799.0,2.90379699]
[1625560946974,0.50631154,34800.0,34799.0,2.90379699]
[1625560947424,5.00961154,34800.0,34799.0,2.90379699]
[1625560949176,4.75923499,34800.0,34799.0,3.92053719]
[1625560951280,4.84270253,34800.0,34799.0,3.92053719]
[1625560951682,4.75923499,34800.0,34799.0,3.92053719]
[1625560952633,4.51865955,34800.0,34799.0,3.67996175]
[1625560953486,4.60211675,34800.0,34799.0,3.67996175]
[1625560953885,4.60211675,34800.0,34799.0,4.16111263]
[1625560954489,4.5867572,34800.0,34799.0,4.16111263]
[1625560954690,4.5033,34800.0,34799.0,4.16111263]
[1625560955745,4.5033,34800.0,34799.0,5.68657301]
[1625560963705,4.5033,34800.0,34799.0,5.90645301]
[1625560969719,4.5033,34800.0,34799.0,5.68657301]
[1625560977596,4.51868681,34800.0,34799.0,5.68657301]
[1625560978099,4.51868681,34800.0,34799.0,6.36488634]
[1625560986918,4.51868681,34800.0,34799.0,6.68192634]
[1625560989075,4.51868681,34800.0,34799.0,6.36488634]
[1625560996744,4.60253682,34800.0,34799.0,6.36488634]
[1625560997045,4.77000824,34800.0,34799.0,6.36488634]
[1625560997595,4.60253682,34800.0,34799.0,6.36488634]
[1625560998702,4.51868681,34800.0,34799.0,6.36488634]
[1625560999051,4.6026272,34800.0,34799.0,6.36488634]
[1625560999403,4.77034909,34800.0,34799.0,6.36488634]
[1625561000104,4.6026272,34800.0,34799.0,6.36488634]
[1625561000956,5.10536799,34800.0,34799.0,6.36488634]
[1625561003012,5.0214276,34800.0,34799.0,6.36488634]
[1625561003864,5.10548269,34800.0,34799.0,6.36488634]
[1625561005216,4.77037799,34800.0,34799.0,6.36488634]
[1625561005966,4.6027419,34800.0,34799.0,6.36488634]
[1625561007368,4.51868681,34800.0,34799.0,6.36488634]
[1625561007721,4.60217626,34800.0,34799.0,6.36488634]
[1625561008121,0.09887626,34800.0,34799.0,6.36488634]
[1625561008221,0.01538681,34800.0,34799.0,8.06443396]
[1625561008572,0.01538681,34800.0,34799.0,8.57429027]
[1625561008672,0.01538681,34800.0,34799.0,13.42149027]
[1625561023359,0.01538681,34800.0,34799.0,13.64919027]
[1625561023562,0.08349842,34801.0,34799.0,13.64919027]
[1625561023861,0.08349842,34801.0,34800.0,0.00340144]
[1625561024062,0.08349842,34801.0,34800.0,0.12140144]
[1625561024414,0.01538983,34801.0,34800.0,0.12140144]
[1625561024815,0.09882183,34801.0,34800.0,6.41015007]
[1625561025164,0.01538983,34801.0,34800.0,8.10975487]
[1625561032741,0.23821983,34801.0,34800.0,8.10975487]
[1625561033438,0.23821983,34801.0,34800.0,6.41015007]
[1625561033538,0.73783428,34801.0,34800.0,6.41015007]
[1625561033739,1.40448731,34801.0,34800.0,6.41015007]
[1625561036246,0.73783428,34801.0,34800.0,6.41015007]
[1625561036855,0.51500428,34801.0,34800.0,6.41015007]
[1625561036952,0.84814514,34801.0,34800.0,6.41015007]
[1625561037049,0.001,34804.0,34800.0,6.75115007]
[1625561037151,0.001,34804.0,34800.0,7.25115007]
[1625561037452,0.001,34804.0,34801.0,0.0094401]
[1625561037552,0.001,34804.0,34801.0,0.07184117]
[1625561037650,0.001,34804.0,34802.0,0.00943831]
[1625561037750,0.001,34804.0,34802.0,0.07183924]
[1625561037851,0.001,34804.0,34802.0,0.13083924]
[1625561038000,0.001,34804.0,34803.0,0.01283842]
[1625561038101,0.001,34804.0,34803.0,7.88753253]
[1625561038202,0.001,34804.0,34803.0,7.94653253]
[1625561038401,0.001,34804.0,34803.0,8.18710797]
[1625561038703,0.002,34809.0,34803.0,8.18710797]
[1625561038803,0.002,34809.0,34803.0,8.1776704]
[1625561039004,0.002,34809.0,34804.0,0.00942821]
[1625561039102,0.002,34809.0,34804.0,0.0718288]
[1625561039203,0.002,34809.0,34808.0,5.77116476]
[1625561039303,0.002,34809.0,34808.0,5.99185476]
[1625561039405,0.002,34809.0,34808.0,6.10985476]
[1625561040053,0.002,34809.0,34808.0,6.11325531]
[1625561040455,0.002,34809.0,34808.0,6.83498163]
[1625561044969,0.002,34809.0,34808.0,6.90628163]
[1625561045272,5.0167,34809.0,34808.0,6.68559163]
[1625561045470,5.1019,34809.0,34808.0,4.98819023]
[1625561045572,5.0167,34809.0,34808.0,4.98819023]
[1625561045984,5.0167,34809.0,34808.0,5.00049023]
[1625561046076,5.0167,34809.0,34808.0,4.99708968]
[1625561046273,5.26661119,34809.0,34808.0,3.45872842]
[1625561046473,5.50718663,34809.0,34808.0,3.45872842]
[1625561046575,5.50718663,34809.0,34808.0,3.45522842]
[1625561046674,5.25727544,34809.0,34808.0,3.45522842]
[1625561046777,5.25727544,34809.0,34808.0,3.51422842]
[1625561047325,5.25527544,34809.0,34808.0,3.51422842]
[1625561049227,5.33860536,34809.0,34808.0,3.51422842]
[1625561049529,5.25527544,34809.0,34808.0,3.51422842]
[1625561050380,5.33861993,34809.0,34808.0,3.51422842]
[1625561050731,5.50511767,34809.0,34808.0,3.51422842]
[1625561054095,5.42177318,34809.0,34808.0,3.51422842]
[1625561054694,5.50509502,34809.0,34808.0,3.51422842]
[1625561063362,5.50509502,34809.0,34808.0,3.51762925]
[1625561064765,5.52044901,34809.0,34808.0,3.51762925]
[1625561065817,5.43712717,34809.0,34808.0,3.51762925]
[1625561066920,5.52042951,34809.0,34808.0,3.51762925]
[1625561067620,5.52042951,34809.0,34808.0,4.53470248]